bitfinex-derivatives/quotes_BTCF0:USTF0_20250424
["timestamp","ask_amount","ask_price","bid_price","bid_amount"]
[1745477836023,0.21437636,92401.0,92400.0,0.1]
[1745477836330,0.1082048,92397.0,92396.0,0.00108229]
[1745477836531,0.4690048,92397.0,92396.0,0.00108229]
[1745477837332,0.1082083,92394.0,92393.0,0.16531289]
[1745477838223,0.1082106,92392.0,92391.0,0.00541175]
[1745477839927,0.1102106,92392.0,92391.0,0.00541175]
[1745477841230,0.10945314,92412.0,92403.0,0.1081977]
[1745477841431,0.0621,92411.0,92403.0,0.4689977]
[1745477841638,0.10945314,92412.0,92408.0,0.0540955]
[1745477841831,0.10945314,92412.0,92411.0,0.4689884]
[1745477842135,0.10945314,92412.0,92411.0,0.7083084]
[1745477842333,0.0011,92427.0,92417.0,0.0540901]
[1745477842528,0.0011,92427.0,92426.0,0.1081708]
[1745477842730,0.0011,92427.0,92426.0,0.1754908]
[1745477843039,0.0011,92427.0,92426.0,0.2361908]
[1745477843225,0.0011,92427.0,92426.0,0.4081908]
[1745477844334,0.1092696,92427.0,92426.0,0.4081908]
[1745477845035,0.0021,92427.0,92426.0,0.4091908]
[1745477845233,0.0071,92427.0,92426.0,0.4091908]
[1745477845731,0.1122696,92427.0,92426.0,0.3418708]
[1745477845931,0.1122696,92427.0,92426.0,0.4091908]
[1745477847432,0.1122696,92427.0,92426.0,0.4081908]
[1745477847934,0.1132696,92427.0,92426.0,0.4081908]
[1745477848137,0.1132696,92427.0,92426.0,0.4091908]
[1745477848434,0.1102696,92427.0,92426.0,0.4091908]
[1745477848635,0.1122696,92427.0,92426.0,0.4091908]
[1745477848840,0.1112696,92427.0,92426.0,0.4081908]
[1745477849131,0.1132696,92427.0,92426.0,0.4081908]
[1745477849635,0.1122696,92427.0,92426.0,0.4081908]
[1745477850539,0.1112696,92427.0,92426.0,0.4081908]
[1745477850738,0.1122696,92427.0,92426.0,0.4091908]
[1745477851128,0.1132696,92427.0,92426.0,0.4091908]
[1745477851327,0.1122696,92427.0,92426.0,0.4081908]
[1745477851528,0.1132696,92427.0,92426.0,0.4081908]
[1745477852137,0.1102696,92427.0,92426.0,0.4081908]
[1745477852330,0.1122696,92427.0,92426.0,0.4081908]
[1745477852838,0.0051,92427.0,92426.0,0.4081908]
[1745477854840,0.1132696,92427.0,92426.0,0.4081908]
[1745477855136,0.1432696,92427.0,92426.0,0.4081908]
[1745477857136,0.1432696,92427.0,92426.0,0.3102708]
[1745477857333,0.1432696,92427.0,92426.0,0.3474908]
[1745477857334,0.1752696,92427.0,92426.0,0.3474908]
[1745477858139,0.1752696,92427.0,92426.0,0.1754908]
[1745477858437,0.1722696,92427.0,92426.0,0.1754908]
[1745477858741,0.1752696,92427.0,92426.0,0.1754908]
[1745477859039,0.1752696,92427.0,92426.0,0.1081708]
[1745477859233,0.1752696,92427.0,92426.0,0.1754908]
[1745477859434,0.1722696,92427.0,92426.0,0.1754908]
[1745477859633,0.1772696,92427.0,92426.0,0.1754908]
[1745477859840,0.1772696,92427.0,92426.0,0.1081708]
[1745477860042,0.1792696,92427.0,92426.0,0.1754908]
[1745477861636,0.1742696,92427.0,92426.0,0.1754908]
[1745477861835,0.1792696,92427.0,92426.0,0.1754908]
[1745477864141,0.1792696,92427.0,92426.0,0.06732]
[1745477864339,0.1081732,92424.0,92423.0,0.0540871]
[1745477864543,0.1081732,92424.0,92423.0,0.1214071]
[1745477864745,0.1081732,92424.0,92423.0,0.1522071]
[1745477864933,0.1081732,92424.0,92423.0,0.0848871]
[1745477865133,0.1081732,92424.0,92423.0,0.1522071]
[1745477865934,0.1121732,92424.0,92423.0,0.1522071]
[1745477866135,0.1151732,92424.0,92423.0,0.3242071]
[1745477866536,0.1151732,92424.0,92423.0,0.2028]
[1745477866730,0.1151732,92424.0,92423.0,0.172]
[1745477867437,0.1081767,92421.0,92420.0,0.06732]
[1745477868737,0.1121767,92421.0,92420.0,0.06732]
[1745477869142,0.1141767,92421.0,92420.0,0.06732]
[1745477870040,0.1161767,92421.0,92420.0,0.06732]
[1745477870443,0.1081837,92415.0,92414.0,0.00028]
[1745477870842,0.1081849,92414.0,92413.0,0.1755054]
[1745477871044,0.1714849,92414.0,92413.0,0.1755054]
[1745477872433,0.1754849,92414.0,92413.0,0.1755054]
[1745477873342,0.1784849,92414.0,92413.0,0.1755054]
[1745477874044,0.1794849,92414.0,92413.0,0.1755054]
[1745477876337,0.1794849,92414.0,92413.0,0.1081854]
[1745477876649,0.1794849,92414.0,92413.0,0.1412854]
[1745477881346,0.1485849,92414.0,92413.0,0.1412854]
[1745477885644,0.1485849,92414.0,92413.0,0.0331]
[1745477885845,0.1485849,92414.0,92413.0,0.141286]
[1745477886046,0.1485849,92414.0,92413.0,0.0331]
[1745477886645,0.1485849,92414.0,92413.0,0.141286]
[1745477887550,0.1435849,92414.0,92413.0,0.141286]
[1745477887756,0.1455849,92414.0,92413.0,0.141286]
[1745477887954,0.1485849,92414.0,92413.0,0.141286]
[1745477888555,0.1455849,92414.0,92413.0,0.141286]
[1745477888756,0.1485849,92414.0,92413.0,0.141286]
[1745477890458,0.1435849,92414.0,92413.0,0.141286]
[1745477890664,0.1485849,92414.0,92413.0,0.141286]
[1745477893360,0.1485849,92414.0,92413.0,0.0331]
[1745477893564,0.1485849,92414.0,92408.0,0.1084708]
[1745477893565,0.1081907,92410.0,92409.0,0.17551]
[1745477893863,0.1081907,92410.0,92409.0,0.20761]
[1745477894059,0.1717907,92410.0,92409.0,0.14029]
[1745477894363,0.1717907,92410.0,92409.0,0.0321]
[1745477894863,0.1757907,92410.0,92409.0,0.0321]
[1745477895365,0.1777907,92410.0,92409.0,0.0321]
[1745477895754,0.1777907,92410.0,92409.0,0.1402907]
[1745477896360,0.1777907,92410.0,92409.0,0.0321]
[1745477896762,0.1081931,92407.0,92406.0,0.16229]
[1745477896963,0.1081931,92407.0,92406.0,0.26121]
[1745477897263,0.1082012,92400.0,92399.0,0.16531289]
[1745477897763,0.21642521,92400.0,92399.0,0.16531289]
[1745477897963,0.1082059,92396.0,92395.0,0.00028]
[1745477898158,0.1082106,92392.0,92391.0,0.225792]
[1745477900562,0.1102106,92392.0,92391.0,0.225792]
[1745477900959,0.1082212,92383.0,92382.0,0.0304]
[1745477901159,0.1082212,92383.0,92378.0,0.0333]
[1745477901160,0.1082258,92379.0,92378.0,0.0333]
[1745477902066,0.1082258,92379.0,92378.0,0.2053]
[1745477902270,0.1082258,92379.0,92378.0,0.172]
[1745477902455,0.1082258,92379.0,92378.0,0.2026]
[1745477902865,0.1082258,92379.0,92378.0,0.2329]
[1745477903367,0.1082258,92379.0,92378.0,0.341127]
[1745477903962,0.1092258,92379.0,92378.0,0.341127]
[1745477904166,0.1102258,92379.0,92378.0,0.341127]
[1745477907866,0.1102258,92379.0,92378.0,0.172]
[1745477908362,0.108227,92378.0,92377.0,0.00162362]
[1745477908668,0.202727,92378.0,92377.0,0.00162362]
[1745477910161,0.203727,92378.0,92377.0,0.00162362]
[1745477910974,0.205727,92378.0,92377.0,0.00162362]
[1745477913274,0.205727,92378.0,92377.0,0.17362362]
[1745477914374,0.205727,92378.0,92377.0,0.00162362]
[1745477915173,0.173627,92378.0,92377.0,0.17362362]
[1745477915378,0.111227,92378.0,92377.0,0.17362362]
[1745477915575,0.111227,92378.0,92377.0,0.28185182]
[1745477917673,0.111227,92378.0,92377.0,0.172]
[1745477918276,0.141627,92378.0,92377.0,0.172]
[1745477920676,0.172027,92378.0,92377.0,0.172]
[1745477921167,0.108234,92372.0,92371.0,0.031]
[1745477922073,0.171734,92372.0,92371.0,0.031]
[1745477922274,0.172734,92372.0,92371.0,0.203]
[1745477922573,0.173734,92372.0,92371.0,0.203]
[1745477924176,0.173734,92372.0,92371.0,0.031]
[1745477925275,0.173734,92372.0,92371.0,0.203]
[1745477930684,0.534534,92372.0,92371.0,0.172]
[1745477931774,0.0541163,92374.0,92371.0,0.172]
[1745477931775,0.06732,92379.0,92371.0,0.172]
[1745477931975,0.108234,92372.0,92371.0,0.172]
[1745477932175,0.1082387,92368.0,92367.0,0.4251]
[1745477933180,0.1092387,92368.0,92367.0,0.5971]
[1745477933370,0.1102387,92368.0,92367.0,0.5971]
[1745477935479,0.1428387,92368.0,92367.0,0.5971]
[1745477937280,0.1737387,92368.0,92367.0,0.5971]
[1745477938070,0.1428387,92368.0,92367.0,0.5971]
[1745477940184,0.1428387,92368.0,92367.0,0.4251]
[1745477943073,0.1428387,92368.0,92367.0,0.5971]
[1745477946984,0.002,92368.0,92367.0,0.7053399]
[1745477948379,0.1082255,92380.0,92379.0,0.1082258]
[1745477948575,0.1082255,92380.0,92379.0,0.4690258]
[1745477949289,0.1082255,92380.0,92379.0,0.6410258]
[1745477949491,0.1092255,92380.0,92379.0,0.71508063]
[1745477949790,0.1112255,92380.0,92379.0,0.71508063]
[1745477950188,0.003,92380.0,92379.0,0.71508063]
[1745477950987,0.003,92380.0,92379.0,1.07332863]
[1745477951988,0.10951798,92403.0,92402.0,0.1081989]
[1745477952195,0.10951798,92403.0,92402.0,0.6409989]
[1745477952379,0.21771568,92403.0,92402.0,0.6409989]
[1745477952586,0.10951798,92403.0,92402.0,0.6409989]
[1745477953085,0.10951798,92403.0,92402.0,0.7037989]
[1745477953480,0.12051798,92403.0,92402.0,0.7047989]
[1745477954593,0.11451798,92403.0,92402.0,0.7047989]
[1745477954793,0.11751798,92403.0,92402.0,0.7057989]
[1745477955385,0.11451798,92403.0,92402.0,0.7057989]
[1745477956188,0.11251798,92403.0,92402.0,0.7047989]
[1745477956393,0.004,92403.0,92402.0,0.7047989]
[1745477956590,0.004,92403.0,92402.0,0.8130229]
[1745477958193,0.004,92403.0,92402.0,0.5666]
[1745477958194,0.1121977,92403.0,92402.0,0.5666]
[1745477958392,0.1121977,92403.0,92402.0,0.6747989]
[1745477959894,0.004,92403.0,92402.0,0.6747989]
[1745477962193,0.004,92403.0,92402.0,0.7830229]
[1745477971104,0.00162427,92415.0,92402.0,0.674824]
[1745477971306,0.00162427,92415.0,92414.0,0.4689849]
[1745477971610,0.1177854,92426.0,92425.0,0.108172]
[1745477971795,0.1177854,92426.0,92425.0,0.536252]
[1745477972200,0.0540835,92430.0,92426.0,0.1081708]
[1745477972396,0.0052,92440.0,92426.0,0.141296]
[1745477972596,0.0329,92454.0,92451.0,0.1081416]
[1745477972806,0.0329,92454.0,92451.0,0.5362216]
[1745477973206,0.16489826,92470.0,92469.0,0.1081205]
[1745477973507,0.0540559,92477.0,92474.0,0.1081147]
[1745477973508,0.16327437,92475.0,92474.0,0.1081147]
[1745477973707,0.27138877,92475.0,92474.0,0.1081147]
[1745477974214,0.1621782,92472.0,92471.0,0.1081174]
[1745477976305,0.1621782,92472.0,92471.0,0.1091174]
[1745477976505,0.1741782,92472.0,92471.0,0.1101174]
[1745477977605,0.1741782,92472.0,92471.0,0.002]
[1745477978203,0.3461782,92472.0,92471.0,0.002]
[1745477982913,0.4094782,92472.0,92471.0,0.002]
[1745477985717,0.5176182,92472.0,92471.0,0.002]
[1745477992514,0.5176182,92472.0,92465.0,0.3608]
[1745477992515,0.108124,92466.0,92465.0,0.3608]
[1745477992817,0.108124,92466.0,92380.0,0.54311585]
[1745477992818,0.1081521,92442.0,92441.0,0.0326]
[1745477993017,0.1081568,92438.0,92437.0,0.3608]
[1745477994114,0.2801568,92438.0,92437.0,0.3608]
[1745477995118,0.1081568,92438.0,92437.0,0.3608]
[1745477995514,0.1081568,92438.0,92437.0,0.4689579]
[1745477996121,0.1131568,92438.0,92437.0,0.3618]
[1745477996418,0.1141568,92438.0,92437.0,0.3628]
[1745477996619,0.1141568,92438.0,92437.0,0.3638]
[1745477997011,0.1161568,92438.0,92437.0,0.3618]
[1745477997715,0.1131568,92438.0,92437.0,0.3618]
[1745477997915,0.1171568,92438.0,92437.0,0.3618]
[1745477998618,0.1081603,92435.0,92434.0,0.1739612]
[1745477998918,0.1081603,92435.0,92434.0,0.5347612]
[1745477999810,0.1121603,92435.0,92434.0,0.5357612]
[1745478000417,0.1151603,92435.0,92434.0,0.5367612]
[1745478000920,0.007,92435.0,92434.0,0.5367612]
[1745478001314,0.1151603,92435.0,92434.0,0.7087612]
[1745478001513,0.007,92435.0,92434.0,0.7087612]
[1745478002216,0.3608,92479.0,92455.0,0.1622015]
[1745478002415,0.3608,92479.0,92451.0,0.0540703]
[1745478002416,0.0540658,92460.0,92457.0,0.3608]
[1745478002614,0.0974,92459.0,92435.0,0.3608]
[1745478002818,0.1081591,92436.0,92435.0,0.0328]
[1745478003214,0.2801591,92436.0,92435.0,0.0328]
[1745478003725,0.1081685,92428.0,92427.0,0.3608]
[1745478004121,0.1081696,92427.0,92422.0,0.3608]
[1745478004321,0.2482616,92427.0,92413.0,0.3608]
[1745478004517,0.1081966,92404.0,92403.0,0.3608]
[1745478004823,0.1082024,92400.0,92399.0,0.1082013]
[1745478005520,0.1082024,92400.0,92399.0,0.38367661]
[1745478005725,0.0540955,92409.0,92399.0,0.27547531]
[1745478005918,0.054095,92410.0,92409.0,0.1622801]
[1745478006118,0.162288,92410.0,92406.0,0.4148968]
[1745478006320,0.1081931,92407.0,92406.0,0.4148968]
[1745478007124,0.1081931,92407.0,92406.0,0.5868968]
[1745478008221,0.1081931,92407.0,92406.0,0.4148968]
[1745478009026,0.1091931,92407.0,92406.0,0.4198968]
[1745478009525,0.1101931,92407.0,92406.0,0.4238968]
[1745478009721,0.1101931,92407.0,92406.0,0.3698]
[1745478009917,0.1101931,92407.0,92406.0,0.009]
[1745478010316,0.2184091,92407.0,92406.0,0.009]
[1745478010521,0.1082048,92397.0,92378.0,0.58035778]
[1745478010720,0.1082048,92397.0,92379.0,0.0541125]
[1745478010919,0.2164328,92397.0,92382.0,0.1082219]
[1745478011121,0.4531328,92397.0,92382.0,0.1082222]
[1745478011324,0.4531328,92397.0,92380.0,0.1082239]
[1745478011325,0.1082106,92392.0,92380.0,0.1082239]
[1745478011524,0.1082106,92392.0,92378.0,0.58035778]
[1745478011824,0.2164466,92392.0,92384.0,0.0541098]
[1745478012128,0.1082106,92392.0,92385.0,0.1082186]
[1745478012716,0.1082106,92392.0,92381.0,0.0541113]
[1745478012717,0.1082106,92392.0,92386.0,0.1082176]
[1745478012921,0.1092106,92392.0,92387.0,0.1082164]
[1745478013128,0.1102106,92392.0,92391.0,0.00741175]
[1745478014618,0.1727106,92392.0,92391.0,0.00741175]
[1745478015920,0.0541121,92381.0,92367.0,0.3608]
[1745478016118,0.1082317,92374.0,92373.0,0.23928]
[1745478016522,0.1082317,92374.0,92373.0,0.172]
[1745478017529,0.1092317,92374.0,92373.0,0.175]
[1745478018431,0.1092317,92374.0,92373.0,0.2832329]
[1745478018818,0.002,92374.0,92373.0,0.2832329]
[1745478019223,0.002,92374.0,92373.0,0.70876889]
[1745478019827,0.0541037,92395.0,92383.0,0.0541102]
[1745478020032,0.0540973,92406.0,92405.0,0.1081913]
[1745478020232,0.1081954,92405.0,92404.0,0.3928]
[1745478020528,0.1081954,92405.0,92404.0,0.5009966]
[1745478021124,0.1081954,92405.0,92404.0,0.6729966]
[1745478021823,0.0540966,92407.0,92406.0,0.1081942]
[1745478022428,0.0540966,92407.0,92406.0,0.1413942]
[1745478022730,0.0540966,92407.0,92406.0,0.0332]
[1745478023127,0.0590966,92407.0,92406.0,0.2052]
[1745478023324,0.0640966,92407.0,92406.0,0.2052]
[1745478024125,0.0640966,92407.0,92406.0,0.0332]
[1745478024432,0.1081954,92405.0,92404.0,0.3608]
[1745478024727,0.1081954,92405.0,92387.0,0.3608]
[1745478024728,0.1082059,92396.0,92395.0,0.3608]
[1745478025123,0.2802059,92396.0,92395.0,0.3608]
[1745478025531,0.3433059,92396.0,92395.0,0.3608]
[1745478026229,0.1713059,92396.0,92395.0,0.3608]
[1745478026434,0.1443059,92396.0,92395.0,0.3618]
[1745478030329,0.005,92396.0,92395.0,0.4700071]
[1745478031127,0.1132059,92396.0,92395.0,0.5338]
[1745478031730,0.1748059,92396.0,92395.0,0.5338]
[1745478032322,0.1748059,92396.0,92395.0,0.3618]
[1745478037737,0.1748059,92396.0,92395.0,0.001]
[1745478038631,0.0541046,92394.0,92387.0,0.3608]
[1745478038835,0.1082223,92382.0,92381.0,0.0316]
[1745478040033,0.1410223,92382.0,92381.0,0.0326]
[1745478041740,0.1410223,92382.0,92381.0,0.001]
[1745478041924,0.1420223,92382.0,92381.0,0.002]
[1745478043931,0.1502707,92382.0,92381.0,0.002]
[1745478051637,0.5110707,92382.0,92381.0,0.002]
[1745478051838,0.1082294,92376.0,92375.0,0.0624]
[1745478052240,0.1082294,92376.0,92375.0,0.0302]
[1745478052547,0.1082399,92367.0,92366.0,0.03398264]
[1745478053149,0.1082399,92367.0,92366.0,0.20598264]
[1745478053538,0.1082399,92367.0,92366.0,0.23818264]
[1745478053737,0.1092399,92367.0,92366.0,0.24018264]
[1745478054344,0.1102399,92367.0,92366.0,0.20728264]
[1745478055148,0.1423399,92367.0,92366.0,0.00308264]
[1745478055347,0.1740399,92367.0,92366.0,0.00308264]
[1745478056553,0.0541217,92364.0,92360.0,0.0622]
[1745478056753,0.1082469,92361.0,92360.0,0.0622]
[1745478057138,0.1082469,92361.0,92348.0,0.3608]
[1745478057139,0.108261,92349.0,92348.0,0.3608]
[1745478058252,0.108261,92349.0,92348.0,0.5328]
[1745478058447,0.109261,92349.0,92348.0,0.5659]
[1745478060350,0.109261,92349.0,92348.0,0.6741622]
[1745478060848,0.001,92349.0,92348.0,0.6741622]
[1745478061149,0.001,92361.0,92360.0,0.1082481]
[1745478061350,0.1082246,92382.0,92360.0,0.4149238]
[1745478061552,0.1082242,92382.0,92381.0,0.1082229]
[1745478062251,0.1082235,92381.0,92380.0,0.0623]
[1745478063249,0.1142235,92381.0,92380.0,0.2343]
[1745478065351,0.1182235,92381.0,92380.0,0.2343]
[1745478069957,0.01,92381.0,92380.0,0.3425247]
[1745478070157,0.1182235,92381.0,92380.0,0.3425247]
[1745478070353,0.1182235,92381.0,92380.0,0.2343]
[1745478073056,0.1514235,92381.0,92380.0,0.2343]
[1745478073259,0.1182235,92381.0,92380.0,0.172]
[1745478073452,0.1514235,92381.0,92380.0,0.172]
[1745478074261,0.1082352,92371.0,92370.0,0.0623]
[1745478074560,0.1082352,92371.0,92370.0,0.0313]
[1745478075149,0.1715352,92371.0,92370.0,0.2033]
[1745478075355,0.1725352,92371.0,92370.0,0.2033]
[1745478075670,0.1393352,92371.0,92370.0,0.2343]
[1745478075863,0.1423352,92371.0,92370.0,0.2343]
[1745478077867,0.1122352,92371.0,92370.0,0.2343]
[1745478078661,0.004,92371.0,92370.0,0.3425364]
[1745478078862,0.1122352,92371.0,92370.0,0.3425364]
[1745478079669,0.1122352,92371.0,92370.0,0.2343]
[1745478084859,0.1082469,92361.0,92360.0,0.3937]
[1745478085059,0.1082469,92361.0,92360.0,0.4247]
[1745478086161,0.1082469,92361.0,92360.0,0.5967]
[1745478086362,0.1092469,92361.0,92360.0,0.5967]
[1745478087156,0.1092469,92361.0,92360.0,0.5648]
[1745478087361,0.1102469,92361.0,92360.0,0.5648]
[1745478093173,0.1102469,92361.0,92360.0,0.204]
[1745478093472,0.1102469,92361.0,92360.0,0.5648]
[1745478095574,0.1102469,92361.0,92360.0,0.6730481]
[1745478096266,0.002,92361.0,92360.0,0.6730481]
[1745478096465,0.1102469,92361.0,92360.0,0.7813201]
[1745478097868,0.1102469,92361.0,92360.0,0.673072]
[1745478098473,0.1102469,92361.0,92360.0,0.7813201]
[1745478098668,0.1102469,92361.0,92360.0,0.8143201]
[1745478101071,0.1102469,92361.0,92360.0,0.706072]
[1745478102271,0.1102469,92361.0,92360.0,0.8143201]
[1745478102464,0.1102469,92361.0,92360.0,0.8825601]
[1745478103967,0.1102469,92361.0,92360.0,0.8143201]
[1745478104170,0.1102469,92361.0,92360.0,0.8825601]
[1745478110073,0.1102469,92361.0,92360.0,0.7742881]
[1745478112082,0.0546917,92364.0,92360.0,0.7742881]
[1745478112083,0.1082369,92370.0,92369.0,0.1623535]
[1745478112381,0.1082369,92370.0,92369.0,0.4557]
[1745478112580,0.1082369,92370.0,92369.0,0.5639376]
[1745478113077,0.1082369,92370.0,92369.0,0.5965]
[1745478113383,0.1102369,92370.0,92369.0,0.5965]
[1745478114077,0.1102369,92370.0,92369.0,0.7047376]
[1745478114278,0.1132369,92370.0,92369.0,0.7047376]
[1745478116984,0.1462369,92370.0,92369.0,0.7047376]
[1745478117176,0.1781369,92370.0,92369.0,0.7047376]
[1745478119488,0.1462369,92370.0,92369.0,0.7047376]
[1745478120287,0.038,92370.0,92369.0,0.7047376]
[1745478120488,0.005,92370.0,92369.0,0.7047376]
[1745478120879,0.1132364,92370.0,92369.0,0.7047376]
[1745478121588,0.1132364,92370.0,92369.0,0.71553488]
[1745478123891,0.0541071,92389.0,92382.0,0.162328]
[1745478124085,0.1082212,92383.0,92382.0,0.162328]
[1745478124287,0.1082212,92383.0,92382.0,0.414911]
[1745478124482,0.1082212,92383.0,92382.0,0.3608]
[1745478125186,0.1721212,92383.0,92382.0,0.5328]
[1745478125588,0.1781212,92383.0,92382.0,0.5328]
[1745478126090,0.1781212,92383.0,92382.0,0.3608]
[1745478126991,0.1821212,92383.0,92382.0,0.3618]
[1745478129795,0.1082364,92370.0,92369.0,0.3608]
[1745478130188,0.1082364,92370.0,92369.0,0.5328]
[1745478130583,0.1731364,92370.0,92369.0,0.5328]
[1745478131982,0.1741364,92370.0,92369.0,0.5338]
[1745478132188,0.1761364,92370.0,92369.0,0.5348]
[1745478132791,0.1761364,92370.0,92369.0,0.174]
[1745478137095,0.1428364,92370.0,92369.0,0.174]
[1745478140193,0.1428364,92370.0,92369.0,0.2052]
[1745478149106,0.003,92370.0,92369.0,0.3134376]
[1745478149307,0.1082193,92385.0,92380.0,0.0541121]
[1745478149605,0.0323,92384.0,92383.0,0.1082201]
[1745478149904,0.14052,92384.0,92383.0,0.1082201]
[1745478150099,0.14052,92384.0,92383.0,0.2802201]
[1745478150306,0.0011,92397.0,92396.0,0.1082059]
[1745478150603,0.0011,92397.0,92396.0,0.1766459]
[1745478151095,0.0011,92397.0,92396.0,0.3486459]
[1745478151295,0.0011,92397.0,92396.0,0.4108459]
[1745478152001,0.1093048,92397.0,92396.0,0.30264]
[1745478152190,0.1123048,92397.0,92396.0,0.30364]
[1745478152394,0.1123048,92397.0,92396.0,0.2352]
[1745478152594,0.1123048,92397.0,92396.0,0.30364]
[1745478152796,0.1143048,92397.0,92396.0,0.30464]
[1745478153997,0.1143048,92397.0,92396.0,0.2362]
[1745478154201,0.1143048,92397.0,92396.0,0.30464]
[1745478155801,0.1143048,92397.0,92396.0,0.2362]
[1745478156208,0.1475048,92397.0,92396.0,0.0642]
[1745478156405,0.1791048,92397.0,92396.0,0.0642]
[1745478156798,0.1791048,92397.0,92396.0,0.0329]
[1745478157605,0.1791048,92397.0,92396.0,0.002]
[1745478160408,0.5373328,92397.0,92396.0,1e-07]
[1745478160608,0.108227,92378.0,92377.0,0.16412789]
[1745478160911,0.108234,92372.0,92371.0,0.0329]
[1745478161097,0.1082387,92368.0,92367.0,0.16575171]
[1745478162010,0.1406387,92368.0,92367.0,0.16575171]
[1745478162704,0.1416387,92368.0,92367.0,0.16875171]
[1745478162904,0.1724387,92368.0,92367.0,0.16875171]
[1745478163106,0.1724387,92368.0,92355.0,0.21955778]
[1745478163107,0.1082528,92356.0,92355.0,0.21955778]
[1745478164105,0.1710528,92356.0,92355.0,0.21955778]
[1745478165005,0.1720528,92356.0,92355.0,0.22055778]
[1745478165208,0.1720528,92356.0,92355.0,0.173]
[1745478165600,0.1730528,92356.0,92355.0,0.173]
[1745478167809,0.1426528,92356.0,92355.0,0.173]
[1745478168607,0.5034528,92356.0,92355.0,0.173]
[1745478171213,0.5034528,92356.0,92355.0,0.001]
[1745478172116,0.5034528,92356.0,92355.0,0.173]
[1745478176421,0.4710528,92356.0,92355.0,0.173]
[1745478180914,0.002,92356.0,92355.0,0.281254]
[1745478181118,0.1102528,92356.0,92355.0,0.281254]
[1745478181614,0.1082528,92361.0,92360.0,0.1623638]
[1745478181807,0.1082528,92361.0,92360.0,0.2268638]
[1745478182219,0.1082528,92361.0,92360.0,0.3988638]
[1745478182420,0.0541201,92367.0,92366.0,0.1082411]
[1745478182621,0.0541201,92367.0,92366.0,0.1764411]
[1745478182824,0.0541201,92367.0,92366.0,0.2847051]
[1745478183208,0.0541201,92367.0,92366.0,0.4567051]
[1745478183412,0.0541201,92367.0,92366.0,0.8175051]
[1745478183613,0.0541164,92374.0,92373.0,0.1082306]
[1745478184222,0.0541164,92374.0,92373.0,0.2802306]
[1745478184613,0.0561164,92374.0,92373.0,0.2812306]
[1745478185014,0.0561164,92374.0,92373.0,0.2953142]
[1745478185817,0.0581164,92374.0,92373.0,0.2953142]
[1745478186814,0.0581164,92374.0,92373.0,0.3587142]
[1745478187015,0.004,92374.0,92373.0,0.3587142]
[1745478187416,0.1122317,92374.0,92373.0,0.3587142]
[1745478187622,0.1122317,92374.0,92373.0,0.37482041]
[1745478188518,0.1122317,92374.0,92373.0,0.3587142]
[1745478194225,0.0541021,92398.0,92392.0,0.1082106]
[1745478194416,0.063,92413.0,92412.0,0.1081872]
[1745478194616,0.0326,92413.0,92412.0,0.1081872]
[1745478195122,0.0326,92413.0,92412.0,0.172]
[1745478195328,0.140786,92413.0,92412.0,0.172]
[1745478195715,0.140786,92413.0,92412.0,0.2374]
[1745478196218,0.0326,92413.0,92412.0,0.0654]
[1745478196528,0.13721562,92415.0,92414.0,0.1081849]
[1745478197030,0.16327437,92424.0,92423.0,0.1081743]
[1745478197234,0.16327437,92424.0,92423.0,0.1778943]
[1745478197529,0.16327437,92424.0,92423.0,0.19380748]
[1745478197918,0.033,92435.0,92434.0,0.1081614]
[1745478197919,0.1081607,92435.0,92434.0,0.1081614]
[1745478198119,0.1081475,92446.0,92439.0,0.1081556]
[1745478198323,0.0540726,92448.0,92439.0,0.12406878]
[1745478198531,0.1081501,92444.0,92439.0,0.18806878]
[1745478198834,0.033,92445.0,92439.0,0.18806878]
[1745478199021,0.1081498,92444.0,92439.0,0.18806878]
[1745478199225,0.033,92445.0,92439.0,0.36006878]
[1745478199423,0.1081506,92444.0,92439.0,0.36006878]
[1745478200219,0.033,92445.0,92439.0,0.36006878]
[1745478200420,0.0011,92457.0,92456.0,0.1081357]
[1745478201022,0.0011,92457.0,92455.0,0.0617]
[1745478201023,0.1081357,92456.0,92455.0,0.0617]
[1745478201319,0.1081447,92449.0,92441.0,0.0540764]
[1745478201519,0.0304,92448.0,92447.0,0.1081455]
[1745478201822,0.0304,92448.0,92447.0,0.12443082]
[1745478202329,0.0304,92448.0,92447.0,0.29643082]
[1745478202928,0.0304,92448.0,92447.0,0.35813082]
[1745478203236,0.0304,92448.0,92447.0,0.3418455]
[1745478204123,0.0354,92448.0,92447.0,0.3428455]
[1745478204333,0.0404,92448.0,92447.0,0.3428455]
[1745478206322,0.0404,92448.0,92447.0,0.35876455]
[1745478208936,0.0011,92457.0,92456.0,0.1081357]
[1745478209642,0.0540564,92476.0,92470.0,0.1081186]
[1745478209838,0.1081163,92473.0,92471.0,0.1408177]
[1745478210038,0.1081163,92473.0,92472.0,0.3608]
[1745478210235,0.0304,92475.0,92474.0,0.1081147]
[1745478210636,0.0304,92475.0,92472.0,0.5326161]
[1745478210838,0.1081147,92474.0,92473.0,0.01639258]
[1745478211033,0.1081147,92474.0,92472.0,0.4245]
[1745478211232,0.1385147,92474.0,92473.0,0.01639394]
[1745478211432,0.0304,92474.0,92473.0,0.01639394]
[1745478211637,0.0304,92474.0,92473.0,0.04909284]
[1745478211838,0.1385147,92474.0,92473.0,0.04909284]
[1745478212035,0.1081147,92474.0,92473.0,0.04909284]
[1745478212235,0.004,92475.0,92473.0,0.04909284]
[1745478212540,0.004,92475.0,92474.0,0.12452575]
[1745478212745,0.007,92475.0,92474.0,0.04891105]
[1745478213128,0.003,92475.0,92474.0,0.04891105]
[1745478213333,0.1111135,92475.0,92474.0,0.04891105]
[1745478213638,0.1111135,92475.0,92474.0,0.01741105]
[1745478213938,0.1141135,92475.0,92474.0,0.01641105]
[1745478215233,0.1141135,92475.0,92474.0,0.01633832]
[1745478215646,0.1081147,92474.0,92473.0,0.0337]
[1745478215944,0.1686147,92474.0,92473.0,0.0327]
[1745478216344,0.1081158,92473.0,92472.0,0.3608]
[1745478216840,0.1081158,92473.0,92460.0,0.06964]
[1745478216841,0.1081299,92461.0,92460.0,0.06964]
[1745478217041,0.1081299,92461.0,92460.0,0.08561523]
[1745478217635,0.1081299,92461.0,92460.0,0.06964]
[1745478217935,0.1686299,92461.0,92460.0,0.06964]
[1745478218737,0.1686299,92461.0,92460.0,0.08514371]
[1745478219144,0.1686299,92461.0,92460.0,0.08614371]
[1745478220748,0.1686299,92461.0,92460.0,0.19527471]
[1745478220938,0.1686299,92461.0,92460.0,0.08714371]
[1745478221747,0.1686299,92461.0,92460.0,0.07164]